bitfinex/quotes_SOLUSD_20251103
["timestamp","ask_amount","ask_price","bid_price","bid_amount"]
[1762144781502,2.23010039,177.85,177.82,19.68282531]
[1762144781875,2.89010039,177.85,177.82,19.68282531]
[1762144782398,2.23010039,177.85,177.82,19.68282531]
[1762144782577,2.89010039,177.85,177.82,19.68282531]
[1762144784601,102.1,177.91,177.84,2.23010039]
[1762144784602,3.76632024,177.89,177.84,2.23010039]
[1762144784810,3.76549323,177.9,177.87,2.23010039]
[1762144785015,104.99010039,177.92,177.86,2.23010039]
[1762144785212,3.76545282,177.91,177.86,2.23010039]
[1762144785413,104.99010039,177.92,177.86,2.93010039]
[1762144785708,3.76537314,177.91,177.86,2.93010039]
[1762144785909,104.99010039,177.92,177.87,20.3772924]
[1762144786234,102.1,177.92,177.88,2.23010039]
[1762144786387,102.1,177.95,177.9,2.23010039]
[1762144786719,3.76609083,177.94,177.91,2.23010039]
[1762144786901,3.7658737,177.93,177.9,2.23010039]
[1762144787099,2.89010039,177.96,177.89,2.93010039]
[1762144787311,3.76581789,177.95,177.89,2.93010039]
[1762144787504,3.76581789,177.94,177.89,2.93010039]
[1762144787813,2.23010039,177.9,177.87,5.62208354]
[1762144788019,2.23010039,177.89,177.87,5.62208354]
[1762144788623,2.89010039,177.89,177.87,5.62208354]
[1762144789218,2.23010039,177.89,177.87,5.62208354]
[1762144789424,2.23010039,177.92,177.88,0.7]
[1762144789600,2.23010039,177.93,177.88,0.7]
[1762144789920,2.89010039,177.93,177.88,0.7]
[1762144790110,2.89010039,177.93,177.89,19.67508009]
[1762144790318,0.66,177.92,177.89,19.67508009]
[1762144790820,6.14678144,177.92,177.89,19.67508009]
[1762144791719,3.76566472,177.94,177.9,0.7]
[1762144791913,102.1,177.95,177.91,5.48678144]
[1762144792120,102.1,177.95,177.92,19.67176258]
[1762144792302,102.1,177.95,177.92,25.85854402]
[1762144792503,102.1,177.95,177.93,9.74935966]
[1762144792707,102.1,177.95,177.93,10.44935966]
[1762144792920,102.1,177.95,177.93,9.74935966]
[1762144793217,5.48678144,177.98,177.94,20.36955152]
[1762144793424,6.14678144,177.98,177.94,19.66955152]
[1762144793622,0.66,178.03,177.97,5.48678144]
[1762144793804,111.20734692,178.1,177.95,0.7]
[1762144793805,5.48678144,178.04,177.98,5.48678144]
[1762144794004,5.48678144,178.02,177.96,5.48678144]
[1762144794415,5.48678144,178.02,177.94,19.66955152]
[1762144794416,5.48678144,178.03,177.97,6.18678144]
[1762144795007,6.14678144,178.03,177.98,5.61860883]
[1762144795409,0.66,178.02,177.98,5.61860883]
[1762144796618,0.66,178.02,177.98,19.66513091]
[1762144798030,6.14678144,178.02,177.98,19.66513091]
[1762144798328,6.14678144,178.02,177.98,14.04652208]
[1762144800112,0.66,178.02,177.98,19.66513091]
[1762144800517,0.66,178.01,177.98,19.66513091]
[1762144800724,6.14678144,178.02,177.98,19.66513091]
[1762144800923,0.66,178.01,177.98,19.66513091]
[1762144801136,5.48678144,178.0,177.96,5.61924027]
[1762144801309,5.48678144,177.98,177.96,5.61924027]
[1762144801621,102.1,178.0,177.96,5.61924027]
[1762144801622,0.66,177.99,177.96,5.61924027]
[1762144801923,0.66,177.99,177.96,19.66734096]
[1762144802128,6.14678144,177.99,177.96,14.04810069]
[1762144802703,5.48678144,177.98,177.94,5.61983799]
[1762144803032,102.1,178.0,177.95,0.7]
[1762144803202,102.76,178.0,177.95,0.7]
[1762144803598,0.66,177.99,177.95,0.7]
[1762144804221,6.14678144,177.99,177.96,5.61924027]
[1762144804525,5.48678144,177.97,177.93,9.74935966]
[1762144804825,5.48678144,177.95,177.93,9.74935966]
[1762144805029,6.14678144,177.94,177.93,15.36954737]
[1762144805600,6.14678144,177.94,177.93,9.74935966]
[1762144805798,5.48678144,177.96,177.93,15.36954737]
[1762144806017,6.15678144,177.96,177.93,15.36954737]
[1762144806202,0.67,177.95,177.93,15.36954737]
[1762144806832,5.48678144,177.96,177.93,15.36954737]
[1762144807129,6.15678144,177.96,177.93,15.36954737]
[1762144807310,0.67,177.95,177.93,15.36954737]
[1762144807514,6.15678144,177.95,177.93,15.36954737]
[1762144807838,3.77146035,177.97,177.94,0.65]
[1762144808129,102.1,177.98,177.93,29.42001665]
[1762144808323,108.25678144,177.98,177.93,30.07001665]
[1762144809505,5.48678144,177.94,177.93,15.36954737]
[1762144809729,15.94560913,177.94,177.93,9.74935966]
[1762144809936,6.15678144,177.94,177.93,9.74935966]
[1762144810634,26.74878144,177.94,177.93,9.74935966]
[1762144811221,30.5225999,177.94,177.93,9.74935966]
[1762144811840,45.93129945,177.94,177.93,9.74935966]
[1762144812134,5.48678144,177.84,177.81,19.88387794]
[1762144812340,8.09242305,177.83,177.81,19.88387794]
[1762144813821,8.09242305,177.83,177.81,5.82392631]
[1762144814939,102.1,177.87,177.81,5.82392631]
[1762144814940,8.76242305,177.82,177.81,5.82392631]
[1762144815250,8.76242305,177.82,177.81,0.2]
[1762144816147,8.76242305,177.82,177.81,5.82398065]
[1762144816349,8.76242305,177.82,177.81,0.2]
[1762144816731,8.76242305,177.82,177.81,5.82398065]
[1762144818019,8.09242305,177.83,177.81,5.82398065]
[1762144818422,8.76242305,177.83,177.81,5.82398065]
[1762144818724,0.67,177.83,177.81,5.82398065]
[1762144818924,8.76242305,177.83,177.81,5.82398065]
[1762144819143,3.76709212,177.85,177.81,19.88393228]
[1762144819345,8.09242305,177.85,177.81,19.88393228]
[1762144819531,8.09242305,177.84,177.81,19.88393228]
[1762144820248,8.09242305,177.83,177.81,19.88393228]
[1762144820434,102.77,177.87,177.82,8.74242305]
[1762144820638,110.86242305,177.87,177.82,0.65]
[1762144820831,102.77,177.87,177.82,8.74242305]
[1762144821216,102.1,177.87,177.84,8.09242305]
[1762144821422,8.76242305,177.93,177.87,19.6772924]
[1762144821651,12.52456528,177.93,177.87,27.76971545]
[1762144821848,8.09242305,177.92,177.87,19.6772924]
[1762144822438,8.09242305,177.9,177.87,5.62208354]
[1762144822625,8.09242305,177.9,177.87,19.6772924]
[1762144822826,8.76242305,177.9,177.87,5.62208354]
[1762144823027,0.67,177.9,177.87,5.62208354]
[1762144823455,8.09242305,177.88,177.8,0.65]
[1762144823747,6.29115051,177.9,177.82,19.68282531]
[1762144823748,8.09242305,177.86,177.82,19.68282531]
[1762144824164,8.76242305,177.86,177.82,19.68282531]
[1762144824533,8.09242305,177.88,177.82,28.42524836]
[1762144824730,8.09242305,177.87,177.82,19.68282531]
[1762144824930,8.09242305,177.86,177.82,19.68282531]
[1762144825129,8.09242305,177.85,177.82,19.68282531]
[1762144825353,8.09242305,177.85,177.82,5.62366437]
[1762144825558,8.79242305,177.85,177.82,5.62366437]
[1762144826077,8.09242305,177.83,177.82,5.62366437]
[1762144826250,8.09242305,177.83,177.81,5.82396514]
[1762144826557,8.79242305,177.83,177.81,5.82396514]
[1762144828457,0.7,177.83,177.81,5.82396514]
[1762144828647,8.09242305,177.84,177.81,5.82396514]
[1762144829241,110.89242305,177.83,177.81,5.82396514]
[1762144830257,102.1,177.83,177.81,5.82396514]
[1762144838187,8.75242305,177.82,177.81,5.82396514]
[1762144838559,110.19242305,177.83,177.81,5.82396514]
[1762144838758,110.85242305,177.83,177.81,5.82396514]
[1762144839365,102.1,177.83,177.81,5.82396514]
[1762144840462,102.76,177.83,177.81,5.82396514]
[1762144841180,102.1,177.83,177.81,5.82396514]
[1762144841988,102.1,177.83,177.82,8.81242305]
[1762144842157,102.1,177.83,177.82,14.43608742]
[1762144842559,102.1,177.83,177.82,6.34366437]
[1762144842774,102.1,177.83,177.82,5.62366437]
[1762144845291,8.75242305,177.83,177.81,5.8239453]
[1762144845495,8.09242305,177.82,177.81,5.8239453]
[1762144845792,8.75242305,177.83,177.81,5.8239453]
[1762144846465,0.66,177.82,177.81,5.8239453]
[1762144846661,8.09242305,177.83,177.81,5.8239453]
[1762144846895,8.09242305,177.85,177.81,6.5439453]
[1762144847090,3.76957122,177.84,177.81,6.5439453]
[1762144847269,102.1,177.87,177.82,8.81242305]
[1762144847468,3.76962386,177.86,177.82,8.81242305]
[1762144847667,3.76962386,177.85,177.82,8.81242305]
[1762144847896,102.76,177.87,177.82,8.81242305]
[1762144848076,3.77063588,177.86,177.83,0.72]
[1762144848279,102.76,177.87,177.84,5.62303193]
[1762144848468,3.77296618,177.86,177.84,5.62303193]
[1762144848801,4.70385539,177.91,177.85,8.81242305]
[1762144849098,3.77265503,177.9,177.87,8.09242305]
[1762144849266,3.77265503,177.89,177.85,8.81242305]
[1762144849467,8.09242305,177.91,177.85,0.72]
[1762144849689,3.7741934,177.9,177.85,8.81242305]
[1762144849886,3.7741934,177.89,177.85,8.81242305]
[1762144850065,0.66,177.9,177.85,8.81242305]
[1762144850378,3.77412938,177.89,177.86,19.67839874]
[1762144850578,0.66,177.9,177.86,19.67839874]
[1762144850781,3.77508746,177.89,177.86,19.67839874]
[1762144851102,0.66,177.9,177.86,19.67839874]
[1762144851266,3.77508692,177.89,177.86,19.67839874]
[1762144851593,0.66,177.9,177.86,19.67839874]
[1762144851810,4.70385539,177.93,177.86,27.77082179]
[1762144852104,50.0,177.97,177.92,8.09242305]
[1762144852105,4.70385539,177.97,177.92,8.09242305]
[1762144852309,8.09242305,177.97,177.9,19.67397413]
[1762144852526,8.09242305,177.95,177.93,9.74935966]
[1762144852812,8.75242305,177.94,177.93,9.02935966]
[1762144853184,34.04827844,177.94,177.93,9.02935966]
[1762144853390,29.34442305,177.94,177.85,20.39946242]
[1762144853609,8.09242305,177.9,177.85,20.39946242]
[1762144854094,8.09242305,177.9,177.86,0.72]
[1762144854298,8.75242305,177.89,177.85,19.67946242]
[1762144854488,8.09242305,177.89,177.85,14.05674665]
[1762144855019,8.09242305,177.87,177.84,5.62303193]
[1762144855313,8.09242305,177.86,177.84,5.62303193]
[1762144855898,8.09242305,177.87,177.84,19.68061177]
[1762144856319,3.48444199,177.87,177.84,19.68061177]
[1762144856495,3.48444199,177.87,177.84,5.62303193]
[1762144856822,3.48444199,177.85,177.82,5.62366437]
[1762144856987,3.48444199,177.84,177.82,5.62366437]
[1762144857611,3.48444199,177.85,177.82,5.62366437]
[1762144858410,3.48444199,177.85,177.82,6.34366437]
[1762144858617,3.48444199,177.86,177.82,6.34366437]
[1762144859973,3.48444199,177.84,177.81,0.2]
[1762144860155,3.48444199,177.84,177.81,5.82394568]
[1762144860460,4.14444199,177.84,177.81,5.82394568]
[1762144861445,3.48444199,177.84,177.81,5.82394568]
[1762144861843,3.48444199,177.87,177.83,5.62334814]
[1762144862256,3.48444199,177.86,177.83,5.62334814]
[1762144862860,102.1,177.89,177.81,5.82367121]
[1762144862861,4.14444199,177.85,177.81,5.82367121]
[1762144863032,3.48444199,177.87,177.83,0.72]
[1762144863551,8.20914051,177.87,177.83,0.72]
[1762144863761,106.82469852,177.88,177.84,23.16505376]
[1762144864063,102.1,177.88,177.85,4.20444199]
[1762144864372,4.72469852,177.91,177.85,4.20444199]
[1762144864373,3.78600071,177.87,177.85,4.20444199]
[1762144864569,8.20914051,177.91,177.86,0.72]
[1762144864782,3.78571628,177.9,177.86,0.72]
[1762144865070,3.78571628,177.89,177.86,0.72]
[1762144865276,3.78571628,177.89,177.85,3.48444199]
[1762144865277,3.78571628,177.88,177.84,19.68061177]
[1762144865448,3.78571628,177.87,177.84,19.68061177]
[1762144865649,3.78571628,177.86,177.84,19.68061177]
[1762144865844,5.38469852,177.9,177.81,9.98882769]
[1762144865845,3.78571628,177.85,177.82,0.66]
[1762144866040,3.78634808,177.84,177.82,19.68282531]
[1762144866243,5.38469852,177.88,177.82,19.68282531]
[1762144866244,3.78634808,177.83,177.82,19.68282531]
[1762144866442,3.78634808,177.83,177.82,5.62366437]
[1762144867447,3.78634808,177.83,177.82,6.28366437]
[1762144868260,3.78634808,177.83,177.82,9.76810636]
[1762144868582,3.78774728,177.83,177.82,5.62366437]
[1762144868963,3.78774728,177.83,177.82,6.28366437]
[1762144869455,3.78774728,177.83,177.82,5.62366437]
[1762144872051,3.78774728,177.83,177.82,6.28366437]
[1762144872250,102.1,177.84,177.82,9.76810636]
[1762144872566,102.1,177.84,177.83,0.66]
[1762144872780,20.592,177.9,177.83,2.88983983]
[1762144872781,70.28619477,177.9,177.83,2.88983983]
[1762144872956,3.78736798,177.89,177.85,2.22983983]
[1762144873164,3.78736798,177.88,177.84,2.88983983]
[1762144873470,3.78736798,177.87,177.85,5.62271577]
[1762144873685,2.22983983,177.88,177.85,6.28271577]
[1762144873975,6.72707614,177.87,177.85,5.62271577]
[1762144874174,3.78723631,177.86,177.85,5.62271577]
[1762144875660,3.78723631,177.86,177.83,19.68171849]
[1762144875863,2.22983983,177.87,177.83,20.34171849]
[1762144876063,3.78772359,177.86,177.83,20.34171849]
[1762144876263,2.93983983,177.87,177.83,20.34171849]
[1762144876464,3.78779618,177.86,177.83,19.68171849]
[1762144876681,2.22983983,177.87,177.85,5.62271577]
[1762144876982,3.78779673,177.86,177.85,5.62271577]
[1762144878677,3.78779673,177.86,177.81,14.25921199]
[1762144878678,6.72763656,177.86,177.81,14.25921199]
[1762144878887,2.22983983,177.84,177.82,5.62366437]
[1762144879192,72.5160346,177.85,177.82,5.62366437]
[1762144879377,3.78839506,177.84,177.82,5.62366437]
[1762144879685,73.2260346,177.85,177.82,5.62366437]
[1762144879892,3.78840255,177.84,177.82,5.62366437]
[1762144880064,73.2260346,177.85,177.82,5.62366437]
[1762144880265,3.78854672,177.84,177.82,5.62366437]
[1762144880492,3.78854672,177.83,177.82,19.68282531]
[1762144881096,3.78854672,177.83,177.82,6.28366437]
[1762144881296,3.78854672,177.83,177.82,5.62366437]
[1762144881595,3.78854672,177.83,177.82,6.28366437]
[1762144882475,3.78854672,177.83,177.82,22.57449477]
[1762144883096,70.28619477,177.85,177.82,38.86349554]
[1762144883282,70.28619477,177.85,177.83,2.88983983]
[1762144883686,70.28619477,177.85,177.84,16.90950596]
[1762144883990,72.5160346,177.85,177.82,19.68282531]
[1762144884196,72.5160346,177.85,177.83,16.91141238]
[1762144884503,73.2260346,177.85,177.83,16.91141238]
[1762144884800,73.2260346,177.85,177.82,5.62366437]
[1762144884801,2.93983983,177.84,177.82,5.62366437]
[1762144884968,2.22983983,177.83,177.82,5.62366437]
[1762144886108,2.22983983,177.84,177.82,5.62366437]
[1762144886599,70.28619477,177.85,177.82,19.68282531]
[1762144886809,70.28619477,177.85,177.83,0.66]
[1762144886975,70.28619477,177.85,177.82,20.34282531]
[1762144887288,2.22983983,177.88,177.83,0.66]
[1762144887606,2.22983983,177.85,177.82,5.62366437]
[1762144888605,2.22983983,177.83,177.82,5.62366437]
[1762144888780,2.88983983,177.84,177.82,5.62366437]
[1762144889187,2.22983983,177.84,177.82,5.62366437]
[1762144890579,2.22983983,177.85,177.82,5.62366437]
[1762144890781,2.22983983,177.85,177.82,6.28366437]
[1762144891003,2.22983983,177.85,177.82,5.62366437]
[1762144891519,2.22983983,177.84,177.81,22.73822447]
[1762144891876,2.22983983,177.84,177.81,17.11427282]
[1762144892476,2.22983983,177.84,177.81,22.73824187]
[1762144892477,2.22983983,177.83,177.81,22.73824187]
[1762144892701,72.5160346,177.82,177.81,0.2]
[1762144893000,73.1760346,177.82,177.81,0.2]
[1762144894321,2.22983983,177.83,177.81,5.82398065]
[1762144894523,2.22983983,177.82,177.81,0.2]
[1762144894821,2.88983983,177.82,177.81,0.2]
[1762144895121,11.40366054,177.82,177.81,0.2]
[1762144896512,6.67896202,177.82,177.81,0.2]
[1762144896713,11.41461571,177.82,177.81,0.2]
[1762144897498,8.52477588,177.82,177.81,5.82398065]
[1762144897722,3.78912219,177.82,177.81,6.54398065]
[1762144897929,3.78912219,177.82,177.81,20.60590266]
[1762144898724,3.78912219,177.82,177.81,19.88590266]
[1762144899605,6.01896202,177.82,177.81,19.88590266]
[1762144899802,6.01896202,177.82,177.81,5.82398065]
[1762144900212,6.01896202,177.82,177.81,11.84294267]
[1762144900522,3.78912219,177.82,177.81,12.56294267]
[1762144901431,3.78912219,177.82,177.81,11.84294267]
[1762144902231,3.78912219,177.82,177.81,10.55963434]
[1762144902524,3.78912219,177.82,177.81,11.27963434]
[1762144904705,3.78912219,177.82,177.81,10.55963434]
[1762144905604,6.01896202,177.82,177.81,10.55963434]
[1762144906612,3.78912219,177.82,177.81,10.55963434]
[1762144907443,3.78912219,177.82,177.81,13.50947417]
[1762144909525,3.78912219,177.82,177.81,11.27963434]
[1762144913243,3.78912219,177.82,177.81,13.50947417]
[1762144914020,3.78912219,177.82,177.81,11.27963434]
[1762144914244,2.10267519,177.82,177.81,11.27963434]
[1762144914453,2.90983983,177.87,177.81,25.33958597]
[1762144914622,72.5160346,177.86,177.82,0.72]
[1762144915123,72.5160346,177.86,177.83,16.91141238]
[1762144915625,72.5160346,177.86,177.84,5.62303193]
[1762144915930,70.28619477,177.86,177.84,5.62303193]
[1762144917438,70.28619477,177.86,177.84,22.53444431]
[1762144917643,70.28619477,177.86,177.83,19.6815953]
[1762144917848,70.28619477,177.86,177.83,20.4015953]
[1762144918047,70.28619477,177.86,177.83,37.31300768]
[1762144918555,70.28619477,177.86,177.83,20.4015953]
[1762144918753,70.28619477,177.86,177.84,16.91141238]
[1762144919159,70.28619477,177.86,177.83,20.4015953]
[1762144919337,70.28619477,177.86,177.84,16.91141238]
[1762144920462,70.28619477,177.86,177.83,19.6815953]
[1762144920651,70.28619477,177.86,177.84,17.63045911]
[1762144920846,70.28619477,177.86,177.84,16.91045911]
[1762144922340,70.28619477,177.86,177.84,17.63045911]
[1762144922667,21.4141049,177.93,177.85,22.62934502]
[1762144922668,70.28619477,177.92,177.85,22.62934502]
[1762144922843,5.41565369,177.94,177.89,2.22983983]
[1762144923046,6.96549352,177.95,177.89,2.22983983]
[1762144923367,6.96549352,177.95,177.9,0.72]
[1762144923565,6.96549352,177.95,177.9,17.62474178]
[1762144923770,4.73565369,177.95,177.91,0.72]
[1762144924272,4.73565369,177.95,177.91,2.94983983]
[1762144924448,4.73565369,177.95,177.92,16.90378926]
[1762144924650,4.73565369,177.95,177.93,5.62018771]
[1762144925855,4.73565369,177.96,177.94,0.66]
[1762144926064,5.44565369,177.97,177.93,19.67065699]
[1762144926279,4.48923479,177.96,177.94,16.90188456]
[1762144926570,3.77923479,177.95,177.94,16.90188456]
[1762144927768,3.77923479,177.95,177.94,23.18175642]
[1762144928574,3.77923479,177.95,177.94,22.52175642]
[1762144928782,3.77923479,177.98,177.94,39.46127591]
[1762144929076,3.77923479,177.97,177.95,2.88983983]
[1762144929274,2.22983983,178.0,177.95,2.88983983]
[1762144929454,3.77215348,177.99,177.96,0.66]
[1762144929777,3.77215348,177.98,177.97,5.61892453]
[1762144930079,0.1,178.01,177.98,20.592]
[1762144930387,0.1,178.01,178.0,2.22983983]
[1762144930755,0.1,178.01,178.0,2.88983983]
[1762144930947,0.1,178.01,178.0,5.14240916]
[1762144931152,0.1,178.01,178.0,2.91256933]
[1762144931556,0.1,178.01,178.0,2.25256933]
[1762144932078,0.1,178.01,178.0,7.87054685]
[1762144933789,3.03983983,178.01,178.0,2.25256933]
[1762144933958,3.03983983,178.01,177.98,5.61858291]
[1762144934293,0.71,178.0,177.98,20.32756893]
[1762144934456,4.18944407,178.0,177.98,20.32756893]
[1762144934656,3.47944407,178.0,177.98,20.32756893]
[1762144935174,3.47944407,177.99,177.98,20.32756893]
[1762144935384,4.18944407,177.99,177.97,5.6188965]
[1762144935581,3.47944407,177.98,177.97,3.47944407]
[1762144935772,3.47944407,177.99,177.97,9.09822582]
[1762144936483,73.76563884,178.0,177.97,9.75822582]
[1762144936685,73.76563884,178.0,177.97,9.09822582]
[1762144937391,70.28619477,178.0,177.97,23.14553716]
[1762144937559,3.47944407,177.99,177.97,9.09822582]
[1762144938384,70.99619477,178.0,177.97,9.09822582]
[1762144938385,70.28619477,178.0,177.98,0.66]
[1762144938560,70.28619477,178.0,177.99,3.47944407]
[1762144938969,0.1,178.01,177.99,4.13944407]
[1762144939168,0.1,178.01,178.0,0.66]
[1762144939989,0.1,178.01,178.0,6.27797752]
[1762144940595,0.1,178.01,178.0,9.75742159]
[1762144942391,0.1,178.01,178.0,13.23686566]
[1762144942891,0.1,178.02,178.01,3.47944407]
[1762144943098,0.1,178.02,178.0,9.09742159]
[1762144943278,0.1,178.02,178.0,9.75742159]
[1762144943469,0.1,178.02,178.0,9.09742159]
[1762144943669,0.1,178.02,178.0,9.75742159]
[1762144944095,0.1,178.02,178.0,9.09742159]
[1762144945000,3.57944407,178.02,178.0,9.09742159]
[1762144945188,3.47944407,178.01,178.0,3.47944407]
[1762144945391,4.18944407,178.01,177.98,5.6183374]
[1762144945692,0.1,178.02,177.98,5.6183374]
[1762144945693,3.47944407,177.99,177.98,5.6183374]
[1762144945902,0.67,178.0,177.98,5.6183374]
[1762144946099,3.47944407,177.99,177.98,5.6183374]
[1762144946599,3.47944407,177.99,177.97,5.61892453]
[1762144946808,4.14944407,177.99,177.97,5.61892453]
[1762144946974,3.47944407,177.98,177.97,5.61892453]
[1762144947703,3.47944407,178.0,177.97,6.31892453]
[1762144947898,3.47944407,178.01,177.97,6.31892453]
[1762144948106,73.86563884,178.02,177.98,0.7]
[1762144948277,70.38619477,178.02,177.98,0.7]
[1762144948597,3.47944407,178.0,177.98,5.61860326]
[1762144949476,4.14944407,178.01,177.98,5.61860326]
[1762144949683,73.86563884,178.02,177.98,20.36512534]
[1762144949902,70.38619477,178.02,177.99,0.7]
[1762144950680,70.38619477,178.02,178.0,5.61797752]
[1762144951005,71.05619477,178.02,178.0,5.61797752]
[1762144951183,70.38619477,178.02,178.0,5.61797752]
[1762144951601,70.38619477,178.02,178.0,6.31797752]
[1762144952087,70.38619477,178.02,178.0,5.61797752]
[1762144952279,74.53563884,178.02,178.0,5.61797752]
[1762144952877,4.14944407,178.01,177.99,5.61829316]
[1762144953820,70.38619477,178.02,178.0,0.7]
[1762144953983,70.38619477,178.02,177.99,19.66402606]
[1762144954181,70.38619477,178.02,177.99,36.55924752]
[1762144954182,73.86563884,178.02,177.99,36.55924752]
[1762144954694,73.86563884,178.02,177.99,37.25924752]
[1762144956688,73.86563884,178.02,177.99,36.55924752]
[1762144956894,3.47944407,178.0,177.99,5.61829316]
[1762144957103,3.47944407,178.0,177.98,16.89617301]
[1762144957412,3.47944407,177.99,177.97,5.61892453]
[1762144958397,4.12944407,177.98,177.95,5.61925113]
[1762144958602,3.47944407,177.96,177.94,5.61982282]
[1762144958914,9.37494124,178.01,177.94,5.61982282]
[1762144958915,3.47944407,177.95,177.94,5.61982282]
[1762144959211,3.47944407,177.96,177.94,5.61982282]
[1762144959788,4.40725461,177.99,177.94,5.61982282]
[1762144960112,3.47944407,177.97,177.94,5.61982282]
[1762144962300,3.47944407,177.95,177.94,5.61982282]
[1762144962688,0.65,177.96,177.94,5.61982282]
[1762144962689,3.47944407,177.96,177.94,5.61982282]
[1762144963008,4.12944407,177.95,177.93,5.62014137]
[1762144963217,3.47944407,177.94,177.93,5.62014137]
[1762144963900,3.47944407,177.94,177.92,5.62050359]
[1762144964203,4.12944407,177.93,177.91,5.61800554]
[1762144964512,20.592,177.91,177.86,16.90759996]
[1762144964709,3.47944407,177.87,177.86,16.90759996]
[1762144964901,3.47944407,177.87,177.83,20.36094021]
[1762144965211,3.47944407,177.87,177.84,0.68]
[1762144965585,3.47944407,177.89,177.85,19.67950519]
[1762144966016,7.24691214,177.89,177.85,20.35950519]
[1762144966193,7.24792058,177.89,177.85,20.35950519]
[1762144966721,7.24792058,177.89,177.85,6.30271577]
[1762144966895,3.47944407,177.88,177.85,5.62271577]
[1762144967099,4.12944407,177.88,177.85,5.62271577]
[1762144967305,0.65,177.88,177.85,5.62271577]
[1762144967507,3.47944407,177.88,177.85,5.62271577]
[1762144969620,3.47944407,177.88,177.85,19.67950519]
[1762144970513,3.47944407,177.89,177.85,19.67950519]
[1762144970715,4.12944407,177.89,177.85,19.67950519]
[1762144970918,4.12944407,177.89,177.85,20.35950519]
[1762144972597,4.12944407,177.89,177.85,37.26901115]
[1762144973010,4.12944407,177.89,177.85,20.35950519]
[1762144973700,4.12944407,177.89,177.85,37.26901115]
[1762144973701,0.65,177.89,177.85,37.26901115]
[1762144974009,4.12944407,177.89,177.85,37.26901115]
[1762144974819,3.47944407,177.88,177.85,36.58901115]
[1762144975026,3.47944407,177.88,177.85,37.26901115]
[1762144975226,70.28619477,177.88,177.85,37.26901115]
[1762144977106,73.76563884,177.88,177.85,19.67950519]
[1762144977310,70.28619477,177.88,177.85,20.35950519]
[1762144977997,70.28619477,177.88,177.85,37.26901115]
[1762144979106,70.93619477,177.88,177.85,36.58901115]
[1762144979411,70.28619477,177.88,177.85,37.26901115]
[1762144980214,70.28619477,177.88,177.86,0.68]
[1762144980517,70.28619477,177.88,177.85,36.58901115]
[1762144980705,70.28619477,177.88,177.86,0.68]
[1762144981102,70.28619477,177.88,177.85,36.58901115]
[1762144981323,70.28619477,177.88,177.85,37.26901115]
[1762144987236,70.28619477,177.88,177.86,4.16944407]
[1762144987575,4.13944407,177.9,177.86,16.90759996]
[1762144987845,4.13944407,177.9,177.87,19.6772924]
[1762144989111,0.66,177.89,177.87,19.6772924]
[1762144989436,4.13944407,177.89,177.87,19.6772924]
[1762144989804,0.66,177.89,177.87,19.6772924]
[1762144990004,3.47944407,177.9,177.87,19.6772924]
[1762144990237,0.66,177.91,177.87,20.3672924]
[1762144990443,0.66,177.91,177.87,24.13079106]
[1762144990940,4.13944407,177.91,177.87,23.44079106]
[1762144991644,3.47944407,177.9,177.87,3.76349866]
[1762144991811,20.592,177.84,177.82,0.2]
[1762144992008,3.47944407,177.83,177.82,0.2]
[1762144992207,24.07144407,177.83,177.82,0.2]
[1762144992632,20.592,177.83,177.82,0.2]
[1762144992801,24.07144407,177.83,177.82,0.2]
[1762144993002,3.47944407,177.83,177.82,0.2]
[1762144993208,9.78882769,177.82,177.81,0.2]
[1762144993517,17.03127404,177.82,177.81,0.2]
[1762144994128,22.65493841,177.82,177.81,0.2]
[1762144994320,21.40808595,177.82,177.81,0.2]
[1762144994631,15.78442158,177.82,177.81,0.2]
[1762144994809,21.40808595,177.82,177.81,0.2]
[1762144995012,2.23259161,177.76,177.74,0.2]
[1762144995232,2.23259161,177.75,177.74,0.2]
[1762144995852,82.6134193,177.75,177.74,0.2]
[1762144996131,2.23259161,177.72,177.71,0.2]
[1762144997847,20.592,177.75,177.71,5.82714534]
[1762144998150,2.23259161,177.72,177.71,0.2]
[1762144998353,5.98494261,177.72,177.71,0.2]
[1762144999128,36.3657703,177.72,177.71,0.2]
[1762144999343,9.78882769,177.71,177.69,0.2]
[1762144999659,60.7205963,177.7,177.69,0.2]
[1762144999867,80.38082769,177.68,177.67,0.2]
[1762145000025,2.23259161,177.65,177.64,0.2]
[1762145000226,28.80953422,177.65,177.64,0.2]
[1762145000426,32.20598848,177.65,177.64,0.2]
[1762145000930,44.22740778,177.65,177.64,0.2]
[1762145001854,20.592,177.61,177.56,5.63158311]
[1762145002053,2.23259161,177.58,177.56,5.63158311]
[1762145002365,2.23259161,177.58,177.56,6.32158311]
[1762145002542,20.592,177.6,177.56,6.32158311]